fUSD/lending_fUSD_20260527
["ID","MTS","AMOUNT","RATE_DAILY","PERIOD"]
[423145956,1779892282000,-462.613322,0.00035586,7]
[423146003,1779892282000,-300.0,0.0003591,10]
[423146012,1779892282000,-1001.532126,0.0003591,2]
[423146007,1779892282000,-500.0,0.0003591,120]
[423146061,1779892282000,-2080.17592889,0.00035995,7]
[423146065,1779892282000,-207.28396013,0.00036,120]
[423145960,1779892282000,-1555.496535,0.00035586,7]
[423145985,1779892282000,-364.0,0.00035725,30]
[423146001,1779892282000,-151.0,0.00035908,14]
[423146002,1779892282000,-300.0,0.0003591,10]
[423146022,1779892282000,-180.64,0.00035911,2]
[423146017,1779892282000,-500.0,0.0003591,120]
[423146016,1779892282000,-500.0,0.0003591,120]
[423145992,1779892282000,-40006.46724358,0.0003577,2]
[423145983,1779892282000,-170.0,0.00035725,30]
[423146052,1779892282000,-161.93,0.00035911,2]
[423145967,1779892282000,-1000.0,0.00035616,10]
[423146014,1779892282000,-500.0,0.0003591,120]
[423145970,1779892282000,-1000.0,0.00035616,10]
[423145959,1779892282000,-1555.496535,0.00035586,7]
[423145964,1779892282000,-303.80851446,0.00035616,7]
[423145966,1779892282000,-1000.0,0.00035616,10]
[423146033,1779892282000,-168.52,0.00035911,30]
[423146101,1779892283000,-15302.86476602,0.000362,2]
[423146149,1779892283000,-1544.0,0.00036477,7]
[423146120,1779892283000,-16021.16,0.00036261,20]
[423146131,1779892283000,-151.0,0.000363,7]
[423146143,1779892283000,-468.01545777,0.00036416,2]
[423146139,1779892283000,-161.7,0.0003641,120]
[423146185,1779892283000,-150.31217314,0.00036569,2]
[423146095,1779892283000,-151.0,0.00036161,7]
[423146105,1779892283000,-14184.25,0.00036261,2]
[423146109,1779892283000,-499.99,0.00036261,2]
[423146129,1779892283000,-151.0,0.000363,7]
[423146154,1779892283000,-1544.0,0.00036477,7]
[423146108,1779892283000,-1761.27,0.00036261,2]
[423146174,1779892283000,-152.0,0.00036477,7]
[423146187,1779892283000,-160.530931,0.00036603,14]
[423146190,1779892283000,-175.0512305,0.00036605,120]
[423146100,1779892283000,-3542.43710189,0.00036174,2]
[423146118,1779892283000,-1580.23,0.00036261,30]
[423146135,1779892283000,-3542.43710189,0.00036335,2]
[423146138,1779892283000,-151729.0,0.000364,30]
[423146170,1779892283000,-151.0,0.00036477,7]
[423146191,1779892283000,-776.02,0.00036605,2]
[423146106,1779892283000,-999.99,0.00036261,10]
[423146194,1779892283000,-500.0,0.00036605,15]
[423146163,1779892283000,-151.0,0.00036477,7]
[423146157,1779892283000,-1544.0,0.00036477,7]
[423146089,1779892283000,-1277.6691366,0.0003616,30]
[423146145,1779892283000,-513.0,0.00036444,14]
[423146104,1779892283000,-24999.99,0.00036261,2]
[423146086,1779892283000,-200.0,0.00036127,2]
[423146084,1779892283000,-1000.0,0.00036126,2]
[423146083,1779892283000,-588.87858603,0.00036068,30]
[423146088,1779892283000,-151.0,0.00036158,14]
[423146091,1779892283000,-151.0,0.00036161,7]
[423146087,1779892283000,-1360.8,0.00036153,30]
[423146085,1779892283000,-440.63510763,0.00036127,14]
[423146093,1779892283000,-151.0,0.00036161,7]
[423146090,1779892283000,-300.0,0.0003616,10]
[423146094,1779892283000,-151.0,0.00036161,7]
[423146082,1779892283000,-745.65223615,0.00036068,30]
[423146092,1779892283000,-151.0,0.00036161,7]
[423146097,1779892283000,-151.0,0.00036161,7]
[423146103,1779892283000,-4999.99,0.00036261,30]
[423146110,1779892283000,-5601.76,0.00036261,2]
[423146125,1779892283000,-1500000.0,0.000363,2]
[423146144,1779892283000,-3542.43710189,0.00036438,2]
[423146146,1779892283000,-1544.0,0.00036477,7]
[423146141,1779892283000,-1395.60948093,0.00036411,86]
[423146156,1779892283000,-1544.0,0.00036477,7]
[423146172,1779892283000,-152.0,0.00036477,7]
[423146173,1779892283000,-152.0,0.00036477,7]
[423146127,1779892283000,-151.0,0.000363,7]
[423146136,1779892283000,-3542.43710189,0.0003637,2]
[423146147,1779892283000,-1544.0,0.00036477,7]
[423146117,1779892283000,-176.64,0.00036261,2]
[423146176,1779892283000,-152.0,0.00036477,7]
[423146151,1779892283000,-1544.0,0.00036477,7]
[423146112,1779892283000,-299.99,0.00036261,30]
[423146116,1779892283000,-9999.99,0.00036261,2]
[423146188,1779892283000,-300.0,0.00036605,10]
[423146121,1779892283000,-9999.99,0.00036261,2]
[423146128,1779892283000,-151.0,0.000363,7]
[423146167,1779892283000,-151.0,0.00036477,7]
[423146168,1779892283000,-151.0,0.00036477,7]
[423146099,1779892283000,-516946.0538,0.00036161,2]
[423146137,1779892283000,-300.0,0.00036399,10]
[423146142,1779892283000,-1020.15441646,0.00036411,86]
[423146150,1779892283000,-1544.0,0.00036477,7]
[423146184,1779892283000,-152.0,0.00036564,7]
[423146175,1779892283000,-152.0,0.00036477,7]
[423146177,1779892283000,-154.0,0.00036477,7]
[423146179,1779892283000,-1544.0,0.00036564,7]
[423146123,1779892283000,-1687.57,0.00036261,30]
[423146126,1779892283000,-151.0,0.000363,7]
[423146162,1779892283000,-1544.0,0.00036477,7]
[423146169,1779892283000,-151.0,0.00036477,7]
[423146171,1779892283000,-152.0,0.00036477,7]
[423146193,1779892283000,-500.0,0.00036605,120]
[423146114,1779892283000,-9999.99,0.00036261,2]
[423146152,1779892283000,-1544.0,0.00036477,7]
[423146183,1779892283000,-152.0,0.00036564,7]
[423146122,1779892283000,-8470.43,0.00036261,2]
[423146111,1779892283000,-212.38,0.00036261,2]
[423146096,1779892283000,-151.0,0.00036161,7]
[423146166,1779892283000,-151.0,0.00036477,7]
[423146160,1779892283000,-1544.0,0.00036477,7]
[423146164,1779892283000,-151.0,0.00036477,7]
[423146161,1779892283000,-1544.0,0.00036477,7]
[423146180,1779892283000,-1544.0,0.00036564,7]
[423146186,1779892283000,-151.0,0.00036603,14]
[423146192,1779892283000,-500.0,0.00036605,120]
[423146107,1779892283000,-150.99,0.00036261,2]
[423146119,1779892283000,-123692.1,0.00036261,10]
[423146140,1779892283000,-416.44098743,0.00036411,86]
[423146102,1779892283000,-9999.99,0.00036261,2]
[423146113,1779892283000,-4115.18,0.00036261,15]
[423146115,1779892283000,-9999.99,0.00036261,2]
[423146124,1779892283000,-300.0,0.00036299,10]
[423146148,1779892283000,-1544.0,0.00036477,7]
[423146181,1779892283000,-1544.0,0.00036564,7]
[423146132,1779892283000,-151.0,0.000363,7]
[423146153,1779892283000,-1544.0,0.00036477,7]
[423146155,1779892283000,-1544.0,0.00036477,7]
[423146130,1779892283000,-151.0,0.000363,7]
[423146134,1779892283000,-162.22,0.00036301,120]
[423146133,1779892283000,-151.0,0.000363,7]
[423146189,1779892283000,-500.0,0.00036605,30]
[423146098,1779892283000,-151.0,0.00036161,7]
[423146178,1779892283000,-200.0,0.00036488,2]
[423146165,1779892283000,-151.0,0.00036477,7]
[423146159,1779892283000,-1544.0,0.00036477,7]
[423146158,1779892283000,-1544.0,0.00036477,7]
[423146182,1779892283000,-151.0,0.00036564,7]
[423146261,1779892284000,-500.0,0.00037,7]
[423146234,1779892284000,-500.0,0.00037,7]
[423146285,1779892284000,-1544.0,0.00037036,7]
[423146296,1779892284000,-151.0,0.00037036,7]
[423146256,1779892284000,-500.0,0.00037,7]
[423146311,1779892284000,-1544.0,0.00037263,7]
[423146224,1779892284000,-865.0,0.00036937,2]
[423146220,1779892284000,-150.0,0.00036892,2]
[423146210,1779892284000,-350.0,0.00036804,2]
[423146316,1779892284000,-285.78132935,0.00037279,7]
[423146235,1779892284000,-500.0,0.00037,7]
[423146245,1779892284000,-500.0,0.00037,7]
[423146242,1779892284000,-500.0,0.00037,7]
[423146300,1779892284000,-152.0,0.00037036,7]
[423146277,1779892284000,-500.0,0.00037,7]
[423146278,1779892284000,-500.0,0.00037,7]
[423146282,1779892284000,-161.7,0.0003701,60]
[423146291,1779892284000,-1544.0,0.00037036,7]
[423146290,1779892284000,-1544.0,0.00037036,7]
[423146295,1779892284000,-151.0,0.00037036,7]
[423146306,1779892284000,-4312.28609339,0.00037215,2]
[423146223,1779892284000,-1272.0,0.00036937,2]
[423146238,1779892284000,-500.0,0.00037,7]
[423146252,1779892284000,-500.0,0.00037,7]
[423146255,1779892284000,-500.0,0.00037,7]
[423146268,1779892284000,-500.0,0.00037,7]
[423146286,1779892284000,-1544.0,0.00037036,7]
[423146269,1779892284000,-500.0,0.00037,7]
[423146273,1779892284000,-590.39,0.00037,7]
[423146196,1779892284000,-500.0,0.00036605,7]
[423146317,1779892284000,-298.71,0.00037311,120]
[423146197,1779892284000,-500.0,0.00036605,120]
[423146308,1779892284000,-43981.93348438,0.0003723,5]
[423146195,1779892284000,-500.0,0.00036605,120]
[423146201,1779892284000,-151.0,0.00036609,7]
[423146208,1779892284000,-159.28862893,0.00036707,60]
[423146199,1779892284000,-500.0,0.00036605,120]
[423146200,1779892284000,-151.0,0.00036606,7]
[423146203,1779892284000,-151.0,0.00036609,7]
[423146204,1779892284000,-151.0,0.00036667,7]
[423146202,1779892284000,-151.0,0.00036609,7]
[423146209,1779892284000,-1043.05,0.00036774,30]
[423146198,1779892284000,-500.0,0.00036605,120]
[423146206,1779892284000,-176.172012,0.00036667,7]
[423146229,1779892284000,-500.0,0.00037,7]
[423146205,1779892284000,-151.0,0.00036667,7]
[423146230,1779892284000,-500.0,0.00037,7]
[423146237,1779892284000,-500.0,0.00037,7]
[423146247,1779892284000,-500.0,0.00037,7]
[423146276,1779892284000,-500.0,0.00037,7]
[423146299,1779892284000,-152.0,0.00037036,7]
[423146305,1779892284000,-309.0,0.000372,2]
[423146219,1779892284000,-150.0,0.00036892,2]
[423146233,1779892284000,-500.0,0.00037,7]
[423146241,1779892284000,-500.0,0.00037,7]
[423146244,1779892284000,-500.0,0.00037,7]
[423146258,1779892284000,-500.0,0.00037,7]
[423146279,1779892284000,-500.0,0.00037,7]
[423146288,1779892284000,-1544.0,0.00037036,7]
[423146207,1779892284000,-138380.5007,0.00036688,30]
[423146216,1779892284000,-150.0,0.00036892,2]
[423146221,1779892284000,-150.0,0.00036892,2]
[423146236,1779892284000,-500.0,0.00037,7]
[423146312,1779892284000,-213.65620423,0.00037263,7]
[423146240,1779892284000,-500.0,0.00037,7]
[423146253,1779892284000,-500.0,0.00037,7]
[423146254,1779892284000,-500.0,0.00037,7]
[423146267,1779892284000,-500.0,0.00037,7]
[423146280,1779892284000,-500.0,0.00037,7]
[423146307,1779892284000,-300.0,0.00037229,10]
[423146314,1779892284000,-660.0,0.00037275,5]
[423146214,1779892284000,-314.1,0.00036834,120]
[423146243,1779892284000,-500.0,0.00037,7]
[423146284,1779892284000,-1544.0,0.00037036,7]
[423146313,1779892284000,-253.38749672,0.00037263,7]
[423146319,1779892284000,-6519.46335896,0.00037375,2]
[423146211,1779892284000,-162.59,0.00036816,2]
[423146215,1779892284000,-150.0,0.00036882,2]
[423146232,1779892284000,-500.0,0.00037,7]
[423146251,1779892284000,-500.0,0.00037,7]
[423146287,1779892284000,-1544.0,0.00037036,7]
[423146213,1779892284000,-350.0,0.00036833,15]
[423146227,1779892284000,-4309.17,0.00036982,60]
[423146270,1779892284000,-500.0,0.00037,7]
[423146281,1779892284000,-478.02,0.00037,7]
[423146294,1779892284000,-151.0,0.00037036,7]
[423146310,1779892284000,-1544.0,0.00037263,7]
[423146318,1779892284000,-4312.28609339,0.00037347,2]
[423146226,1779892284000,-3548.0,0.00036937,2]
[423146222,1779892284000,-248.54033598,0.00036899,2]
[423146257,1779892284000,-500.0,0.00037,7]
[423146259,1779892284000,-500.0,0.00037,7]
[423146302,1779892284000,-2000.0,0.000371,7]
[423146293,1779892284000,-151.0,0.00037036,7]
[423146249,1779892284000,-500.0,0.00037,7]
[423146250,1779892284000,-500.0,0.00037,7]
[423146263,1779892284000,-500.0,0.00037,7]
[423146315,1779892284000,-1802.0,0.00037275,5]
[423146228,1779892284000,-164.66,0.00036986,60]
[423146231,1779892284000,-500.0,0.00037,7]
[423146272,1779892284000,-500.0,0.00037,7]
[423146260,1779892284000,-500.0,0.00037,7]
[423146264,1779892284000,-500.0,0.00037,7]
[423146274,1779892284000,-500.0,0.00037,7]
[423146283,1779892284000,-1544.0,0.00037036,7]
[423146304,1779892284000,-200.64187747,0.000372,120]
[423146217,1779892284000,-150.0,0.00036892,2]
[423146246,1779892284000,-500.0,0.00037,7]
[423146248,1779892284000,-500.0,0.00037,7]
[423146271,1779892284000,-500.0,0.00037,7]
[423146265,1779892284000,-500.0,0.00037,7]
[423146298,1779892284000,-152.0,0.00037036,7]
[423146239,1779892284000,-500.0,0.00037,7]
[423146218,1779892284000,-150.0,0.00036892,2]
[423146212,1779892284000,-180.20139331,0.00036822,120]
[423146309,1779892284000,-2265.9159795,0.0003723,5]
[423146275,1779892284000,-639.05,0.00037,7]
[423146297,1779892284000,-152.0,0.00037036,7]
[423146289,1779892284000,-1544.0,0.00037036,7]
[423146262,1779892284000,-500.0,0.00037,7]
[423146225,1779892284000,-165.037,0.00036937,2]
[423146303,1779892284000,-186.47,0.00037107,120]
[423146301,1779892284000,-248.48877183,0.00037036,7]
[423146292,1779892284000,-1544.0,0.00037036,7]
[423146266,1779892284000,-500.0,0.00037,7]
[423146354,1779892285000,-550.76318,0.0003762,92]
[423146358,1779892285000,-200.0,0.00037662,10]
[423146335,1779892285000,-152.0,0.00037525,7]
[423146322,1779892285000,-622.38115266,0.000374,30]
[423146333,1779892285000,-1544.0,0.00037525,7]
[423146325,1779892285000,-245.24347086,0.00037449,2]
[423146367,1779892285000,-500.0,0.00037794,60]
[423146361,1779892285000,-7668.0241197,0.00037694,2]
[423146348,1779892285000,-500.0,0.00037599,120]
[423146328,1779892285000,-1544.0,0.00037525,7]
[423146329,1779892285000,-1544.0,0.00037525,7]
[423146356,1779892285000,-550.76317,0.0003762,92]
[423146355,1779892285000,-550.76317,0.0003762,92]
[423146332,1779892285000,-1544.0,0.00037525,7]
[423146360,1779892285000,-158.58,0.00037665,13]
[423146327,1779892285000,-500.0,0.00037461,120]
[423146336,1779892285000,-152.0,0.00037525,7]
[423146345,1779892285000,-500.0,0.00037599,120]
[423146371,1779892285000,-151.0,0.00037831,7]
[423146382,1779892285000,-666.0,0.00037898,30]
[423146372,1779892285000,-151.0,0.00037831,7]
[423146373,1779892285000,-1589.0,0.00037838,11]
[423146379,1779892285000,-151.0,0.00037896,14]
[423146391,1779892285000,-500.0,0.00037898,30]
[423146392,1779892285000,-500.0,0.00037898,30]
[423146323,1779892285000,-622.38115266,0.000374,30]
[423146369,1779892285000,-250.0,0.0003781,30]
[423146334,1779892285000,-319.10906165,0.00037525,7]
[423146342,1779892285000,-500.0,0.00037599,120]
[423146331,1779892285000,-1544.0,0.00037525,7]
[423146405,1779892285000,-500.0,0.00037898,120]
[423146320,1779892285000,-201.4,0.000374,15]
[423146351,1779892285000,-150.0,0.000376,30]
[423146370,1779892285000,-1589.0,0.00037831,11]
[423146365,1779892285000,-500.0,0.00037794,60]
[423146344,1779892285000,-500.0,0.00037599,15]
[423146350,1779892285000,-31930.60348994,0.000376,7]
[423146352,1779892285000,-151729.0,0.000376,30]
[423146353,1779892285000,-161.7,0.0003762,86]
[423146357,1779892285000,-550.76317,0.0003762,92]
[423146362,1779892285000,-151.0,0.00037694,7]
[423146364,1779892285000,-151.0,0.00037694,7]
[423146368,1779892285000,-10000.0,0.00037799,2]
[423146338,1779892285000,-151.0,0.00037597,14]
[423146339,1779892285000,-160.530931,0.00037597,14]
[423146346,1779892285000,-500.0,0.00037599,7]
[423146321,1779892285000,-622.38115268,0.000374,30]
[423146343,1779892285000,-500.0,0.00037599,120]
[423146337,1779892285000,-181.6629453,0.00037558,120]
[423146340,1779892285000,-500.0,0.00037599,30]
[423146341,1779892285000,-776.02,0.00037599,2]
[423146363,1779892285000,-151.0,0.00037694,7]
[423146326,1779892285000,-500.0,0.00037461,120]
[423146330,1779892285000,-1544.0,0.00037525,7]
[423146349,1779892285000,-500.0,0.00037599,120]
[423146366,1779892285000,-151.0,0.00037794,7]
[423146324,1779892285000,-323.24,0.00037443,60]
[423146347,1779892285000,-500.0,0.00037599,120]
[423146432,1779892285000,-456.79764672,0.00037898,120]
[423146359,1779892285000,-158.57,0.00037665,13]
[423146389,1779892285000,-500.0,0.00037898,30]
[423146434,1779892285000,-500.0,0.00037898,120]
[423146397,1779892285000,-776.02,0.00037898,2]
[423146399,1779892285000,-776.02,0.00037898,2]
[423146385,1779892285000,-500.0,0.00037898,30]
[423146386,1779892285000,-500.0,0.00037898,30]
[423146413,1779892285000,-500.0,0.00037898,15]
[423146421,1779892285000,-500.0,0.00037898,7]
[423146431,1779892285000,-500.0,0.00037898,120]
[423146425,1779892285000,-500.0,0.00037898,7]
[423146378,1779892285000,-151.0,0.00037875,7]
[423146384,1779892285000,-500.0,0.00037898,30]
[423146395,1779892285000,-776.02,0.00037898,2]
[423146404,1779892285000,-500.0,0.00037898,120]
[423146417,1779892285000,-500.0,0.00037898,120]
[423146374,1779892285000,-1544.0,0.00037875,7]
[423146412,1779892285000,-500.0,0.00037898,15]
[423146380,1779892285000,-160.530931,0.00037896,14]
[423146400,1779892285000,-776.02,0.00037898,2]
[423146401,1779892285000,-776.02,0.00037898,2]
[423146423,1779892285000,-500.0,0.00037898,7]
[423146383,1779892285000,-500.0,0.00037898,30]
[423146402,1779892285000,-776.02,0.00037898,2]
[423146435,1779892285000,-500.0,0.00037898,120]
[423146396,1779892285000,-776.02,0.00037898,2]
[423146427,1779892285000,-500.0,0.00037898,7]
[423146387,1779892285000,-500.0,0.00037898,30]
[423146426,1779892285000,-500.0,0.00037898,7]
[423146420,1779892285000,-500.0,0.00037898,7]
[423146440,1779892285000,-500.0,0.00037898,120]
[423146388,1779892285000,-500.0,0.00037898,30]
[423146416,1779892285000,-500.0,0.00037898,120]
[423146424,1779892285000,-500.0,0.00037898,7]
[423146390,1779892285000,-500.0,0.00037898,30]
[423146433,1779892285000,-500.0,0.00037898,120]
[423146375,1779892285000,-562.82375326,0.00037875,7]
[423146381,1779892285000,-167.6035941,0.00037897,14]
[423146410,1779892285000,-500.0,0.00037898,120]
[423146377,1779892285000,-151.0,0.00037875,7]
[423146406,1779892285000,-500.0,0.00037898,120]
[423146418,1779892285000,-500.0,0.00037898,120]
[423146428,1779892285000,-500.0,0.00037898,7]
[423146429,1779892285000,-500.0,0.00037898,7]
[423146436,1779892285000,-500.0,0.00037898,120]
[423146438,1779892285000,-500.0,0.00037898,120]
[423146394,1779892285000,-776.02,0.00037898,2]
[423146437,1779892285000,-500.0,0.00037898,120]
[423146430,1779892285000,-500.0,0.00037898,7]
[423146422,1779892285000,-500.0,0.00037898,7]
[423146419,1779892285000,-583.18,0.00037898,120]
[423146403,1779892285000,-195.84112978,0.00037898,120]
[423146439,1779892285000,-500.0,0.00037898,120]
[423146414,1779892285000,-500.0,0.00037898,120]
[423146409,1779892285000,-500.0,0.00037898,120]
[423146408,1779892285000,-500.0,0.00037898,120]
[423146376,1779892285000,-151.0,0.00037875,7]
[423146411,1779892285000,-412.19801264,0.00037898,120]
[423146393,1779892285000,-621.25,0.00037898,30]
[423146415,1779892285000,-500.0,0.00037898,120]
[423146407,1779892285000,-500.0,0.00037898,120]
[423146398,1779892285000,-776.02,0.00037898,2]
[423146514,1779892286000,-5203.97,0.000383,2]
[423146507,1779892286000,-1589.0,0.00038186,11]
[423146460,1779892286000,-151.0,0.00037899,7]
[423146481,1779892286000,-2018.67462219,0.00038,60]
[423146501,1779892286000,-297.0,0.00038131,10]
[423146509,1779892286000,-161.7,0.0003822,105]
[423146529,1779892286000,-488.48,0.00038355,120]
[423146486,1779892286000,-1000.0,0.00038078,2]
[423146488,1779892286000,-1000.0,0.00038078,2]
[423146531,1779892286000,-500.0,0.00038356,30]
[423146462,1779892286000,-275.229153,0.00037899,7]
[423146549,1779892286000,-500.0,0.00038356,30]
[423146513,1779892286000,-5203.97,0.000383,2]
[423146526,1779892286000,-157.90300786,0.0003835,5]
[423146542,1779892286000,-500.0,0.00038356,30]
[423146544,1779892286000,-500.0,0.00038356,30]
[423146547,1779892286000,-500.0,0.00038356,30]
[423146551,1779892286000,-500.0,0.00038356,30]
[423146471,1779892286000,-500.0,0.00037999,7]
[423146491,1779892286000,-1000.0,0.00038078,2]
[423146536,1779892286000,-500.0,0.00038356,30]
[423146461,1779892286000,-151.0,0.00037899,7]
[423146485,1779892286000,-157.90300786,0.00038076,5]
[423146484,1779892286000,-350.0,0.00038066,2]
[423146515,1779892286000,-386.2,0.000383,2]
[423146480,1779892286000,-2000.0,0.00038,7]
[423146455,1779892286000,-776.02,0.00037899,2]
[423146458,1779892286000,-776.02,0.00037899,2]
[423146512,1779892286000,-5203.97,0.000383,2]
[423146447,1779892286000,-666.0,0.00037899,30]
[423146454,1779892286000,-776.02,0.00037899,2]
[423146444,1779892286000,-1971520.0,0.00037899,2]
[423146448,1779892286000,-500000.0,0.00037899,2]
[423146453,1779892286000,-776.02,0.00037899,2]
[423146451,1779892286000,-776.02,0.00037899,2]
[423146442,1779892286000,-500.0,0.00037898,120]
[423146449,1779892286000,-48688.0,0.00037899,2]
[423146441,1779892286000,-500.0,0.00037898,120]
[423146445,1779892286000,-110106.0,0.00037899,2]
[423146452,1779892286000,-776.02,0.00037899,2]
[423146446,1779892286000,-252.0,0.00037899,2]
[423146450,1779892286000,-153.919325,0.00037899,7]
[423146443,1779892286000,-500.0,0.00037898,120]
[423146457,1779892286000,-776.02,0.00037899,2]
[423146456,1779892286000,-776.02,0.00037899,2]
[423146474,1779892286000,-500.0,0.00037999,120]
[423146476,1779892286000,-152.64908367,0.00037999,120]
[423146496,1779892286000,-1000.0,0.00038078,2]
[423146516,1779892286000,-4260.6,0.000383,2]
[423146523,1779892286000,-3114.57226564,0.00038342,2]
[423146470,1779892286000,-500.0,0.00037999,7]
[423146517,1779892286000,-4260.6,0.000383,2]
[423146535,1779892286000,-500.0,0.00038356,30]
[423146469,1779892286000,-160.530931,0.00037997,14]
[423146518,1779892286000,-4260.6,0.000383,2]
[423146530,1779892286000,-500.0,0.00038356,30]
[423146548,1779892286000,-500.0,0.00038356,30]
[423146482,1779892286000,-463.05931236,0.00038,2]
[423146490,1779892286000,-1000.0,0.00038078,2]
[423146527,1779892286000,-160.530931,0.00038353,14]
[423146538,1779892286000,-500.0,0.00038356,30]
[423146539,1779892286000,-500.0,0.00038356,30]
[423146467,1779892286000,-1000.0,0.000379,13]
[423146472,1779892286000,-550.76317,0.00037999,96]
[423146511,1779892286000,-160.530931,0.00038297,14]
[423146521,1779892286000,-3542.43710189,0.00038328,2]
[423146522,1779892286000,-513.0,0.00038338,16]
[423146528,1779892286000,-500.0,0.00038355,7]
[423146541,1779892286000,-500.0,0.00038356,30]
[423146550,1779892286000,-500.0,0.00038356,30]
[423146465,1779892286000,-1000.0,0.000379,2]
[423146505,1779892286000,-14994.24876057,0.00038162,2]
[423146502,1779892286000,-7315.35965345,0.00038138,2]
[423146506,1779892286000,-1589.0,0.00038175,11]
[423146540,1779892286000,-500.0,0.00038356,30]
[423146473,1779892286000,-550.76317,0.00037999,96]
[423146475,1779892286000,-500.0,0.00037999,120]
[423146477,1779892286000,-354417.61726106,0.00038,60]
[423146478,1779892286000,-312.527,0.00038,120]
[423146494,1779892286000,-1000.0,0.00038078,2]
[423146493,1779892286000,-1440.3248333,0.00038078,2]
[423146498,1779892286000,-7315.35965345,0.00038095,2]
[423146468,1779892286000,-152.0,0.00037923,30]
[423146552,1779892286000,-500.0,0.00038356,30]
[423146546,1779892286000,-500.0,0.00038356,30]
[423146534,1779892286000,-500.0,0.00038356,30]
[423146463,1779892286000,-151.0,0.00037899,7]
[423146537,1779892286000,-500.0,0.00038356,30]
[423146483,1779892286000,-150.0,0.00038,60]
[423146499,1779892286000,-1360.8,0.00038125,30]
[423146497,1779892286000,-1220.16241665,0.00038078,2]
[423146519,1779892286000,-3542.43710189,0.00038322,2]
[423146545,1779892286000,-500.0,0.00038356,30]
[423146459,1779892286000,-776.22,0.00037899,2]
[423146504,1779892286000,-2317.0,0.00038157,11]
[423146479,1779892286000,-200.0,0.00038,120]
[423146487,1779892286000,-1000.0,0.00038078,2]
[423146508,1779892286000,-8419.42,0.000382,120]
[423146510,1779892286000,-4309.17,0.00038244,60]
[423146464,1779892286000,-151.0,0.00037899,7]
[423146524,1779892286000,-3542.43710189,0.00038343,2]
[423146533,1779892286000,-500.0,0.00038356,30]
[423146503,1779892286000,-2317.0,0.00038147,11]
[423146500,1779892286000,-350.0,0.00038129,2]
[423146489,1779892286000,-1000.0,0.00038078,2]
[423146495,1779892286000,-1000.0,0.00038078,2]
[423146525,1779892286000,-150.0,0.00038348,7]
[423146543,1779892286000,-500.0,0.00038356,30]
[423146520,1779892286000,-2317.0,0.00038325,11]
[423146492,1779892286000,-1000.0,0.00038078,2]
[423146466,1779892286000,-315.0,0.000379,2]
[423146532,1779892286000,-500.0,0.00038356,30]
[423146609,1779892287000,-191.183155,0.00038356,30]
[423146600,1779892287000,-191.183155,0.00038356,30]
[423146669,1779892287000,-198.314198,0.00038356,30]
[423146652,1779892287000,-471.418946,0.00038356,7]
[423146628,1779892287000,-151.0,0.00038356,30]
[423146573,1779892287000,-215.461528,0.00038356,30]